[Event "*** SCC Grand Prix: Titled Tuesday Blitz"]
[Site "Chess.com"]
[Date "2020.06.02"]
[Round "1"]
[White "ChessAintFun"]
[Black "mattcolins2025"]
[Result "1-0"]
[WhiteElo "2662"]
[BlackElo "2330"]
[TimeControl "180+1"]
[EndTime "10:08:37 PDT"]
[Termination "ChessAintFun won by checkmate"]

1. e4 {[%clk 0:03:00.9]} 1... c5 {[%clk 0:02:58.1]} 2. Nf3 {[%clk 0:03:00.8]}
2... e6 {[%clk 0:02:58.6]} 3. d4 {[%clk 0:03:00.7]} 3... cxd4 {[%clk 0:02:59.5]}
4. Nxd4 {[%clk 0:03:01.2]} 4... Nc6 {[%clk 0:03:00.2]} 5. Nc3 {[%clk 0:03:00.4]}
5... Qc7 {[%clk 0:03:00.4]} 6. Be3 {[%clk 0:02:59.1]} 6... a6 {[%clk 0:03:00.9]}
7. Qd2 {[%clk 0:02:59]} 7... Nf6 {[%clk 0:03:01.3]} 8. O-O-O {[%clk 0:02:58]}
8... Bb4 {[%clk 0:03:01.6]} 9. f3 {[%clk 0:02:58.3]} 9... Ne7 {[%clk 0:03:00.8]}
10. Nde2 {[%clk 0:02:57.9]} 10... d5 {[%clk 0:03:00.7]} 11. a3 {[%clk
0:02:35.7]} 11... Bxc3 {[%clk 0:03:00]} 12. Nxc3 {[%clk 0:02:36.6]} 12... dxe4
{[%clk 0:03:00.2]} 13. fxe4 {[%clk 0:02:32.2]} 13... b5 {[%clk 0:02:44.8]} 14.
Bf4 {[%clk 0:02:26.3]} 14... e5 {[%clk 0:02:44.1]} 15. Bxe5 {[%clk 0:02:26.5]}
15... Qb6 {[%clk 0:02:38.1]} 16. Bd4 {[%clk 0:02:20.4]} 16... Qc7 {[%clk
0:02:36.7]} 17. Bxf6 {[%clk 0:02:13.8]} 17... gxf6 {[%clk 0:02:35.8]} 18. Nd5
{[%clk 0:02:13.9]} 18... Nxd5 {[%clk 0:02:35.3]} 19. exd5 {[%clk 0:02:14.8]}
19... Bf5 {[%clk 0:02:33.6]} 20. Re1+ {[%clk 0:02:14.2]} 20... Kd7 {[%clk
0:02:27.4]} 21. Bd3 {[%clk 0:02:12.2]} 21... Bg6 {[%clk 0:02:25.7]} 22. Rhf1
{[%clk 0:02:09.6]} 22... Qd6 {[%clk 0:02:14.5]} 23. Bf5+ {[%clk 0:02:05.2]}
23... Bxf5 {[%clk 0:02:14.4]} 24. Rxf5 {[%clk 0:02:06.1]} 24... Rac8 {[%clk
0:02:12.4]} 25. Ref1 {[%clk 0:02:04.7]} 25... Rc5 {[%clk 0:01:52.6]} 26. Rxf6
{[%clk 0:01:45.8]} 26... Qxd5 {[%clk 0:01:51.7]} 27. Rxf7+ {[%clk 0:01:46.1]}
27... Kc8 {[%clk 0:01:47.5]} 28. Qa5 {[%clk 0:01:28.4]} 28... Qc6 {[%clk
0:01:43.7]} 29. c3 {[%clk 0:01:12.5]} 29... Rd8 {[%clk 0:01:41.4]} 30. Rf8
{[%clk 0:01:01.5]} 30... Qh6+ {[%clk 0:01:39.4]} 31. R8f4 {[%clk 0:00:58.7]}
31... Rcd5 {[%clk 0:01:23.8]} 32. Kb1 {[%clk 0:00:30.2]} 32... Qg6+ {[%clk
0:01:19.7]} 33. Ka2 {[%clk 0:00:29.2]} 33... Rd1 {[%clk 0:00:45.9]} 34. Rf6
{[%clk 0:00:11.5]} 34... Qg8+ {[%clk 0:00:42.9]} 35. Rf7 {[%clk 0:00:11.8]}
35... R1d7 {[%clk 0:00:34.2]} 36. Qxa6+ {[%clk 0:00:11.6]} 36... Kc7 {[%clk
0:00:33.9]} 37. Qa7+ {[%clk 0:00:11.2]} 37... Kc8 {[%clk 0:00:32.6]} 38. Qa8+
{[%clk 0:00:10.7]} 38... Kc7 {[%clk 0:00:32.8]} 39. Qa5+ {[%clk 0:00:10.3]}
39... Kc8 {[%clk 0:00:32.5]} 40. Qa6+ {[%clk 0:00:10.8]} 40... Kc7 {[%clk
0:00:32.6]} 41. Qe6 {[%clk 0:00:09.5]} 41... Qxg2 {[%clk 0:00:17.4]} 42. Rxd7+
{[%clk 0:00:06.7]} 42... Rxd7 {[%clk 0:00:16.8]} 43. Qe5+ {[%clk 0:00:07.3]}
43... Kb7 {[%clk 0:00:09.1]} 44. Qxb5+ {[%clk 0:00:07.1]} 44... Kc7 {[%clk
0:00:09.7]} 45. Qe5+ {[%clk 0:00:07]} 45... Kb7 {[%clk 0:00:09.5]} 46. Re1
{[%clk 0:00:07.7]} 46... Qg8+ {[%clk 0:00:08.1]} 47. Qe6 {[%clk 0:00:06.7]}
47... Qd8 {[%clk 0:00:07.9]} 48. Qb3+ {[%clk 0:00:06.7]} 48... Kc8 {[%clk
0:00:07.4]} 49. Re4 {[%clk 0:00:07.1]} 49... Rc7 {[%clk 0:00:06.4]} 50. Rc4
{[%clk 0:00:07.2]} 50... Qd7 {[%clk 0:00:05.9]} 51. Rxc7+ {[%clk 0:00:07.3]}
51... Qxc7 {[%clk 0:00:06.8]} 52. Qg8+ {[%clk 0:00:07.9]} 52... Kb7 {[%clk
0:00:07.4]} 53. Qd5+ {[%clk 0:00:08.6]} 53... Kc8 {[%clk 0:00:07.5]} 54. h4
{[%clk 0:00:08.7]} 54... Kb8 {[%clk 0:00:06.8]} 55. Qb5+ {[%clk 0:00:08.7]}
55... Kc8 {[%clk 0:00:06.7]} 56. h5 {[%clk 0:00:09.3]} 56... Qf7+ {[%clk
0:00:06.3]} 57. c4 {[%clk 0:00:08.6]} 57... Kd8 {[%clk 0:00:06.1]} 58. a4 {[%clk
0:00:09.1]} 58... Kc7 {[%clk 0:00:06.4]} 59. Qc5+ {[%clk 0:00:09.5]} 59... Kb7
{[%clk 0:00:06.5]} 60. Qd5+ {[%clk 0:00:10.1]} 60... Qxd5 {[%clk 0:00:07]} 61.
cxd5 {[%clk 0:00:11]} 61... Kc7 {[%clk 0:00:07.8]} 62. b4 {[%clk 0:00:11.5]}
62... Kd6 {[%clk 0:00:08.7]} 63. a5 {[%clk 0:00:11.8]} 63... Kxd5 {[%clk
0:00:09.6]} 64. b5 {[%clk 0:00:12.3]} 64... Kc5 {[%clk 0:00:10]} 65. a6 {[%clk
0:00:12.9]} 65... Kb6 {[%clk 0:00:10.9]} 66. Kb3 {[%clk 0:00:13.4]} 66... h6
{[%clk 0:00:11.3]} 67. Kc4 {[%clk 0:00:13.9]} 67... Ka7 {[%clk 0:00:11.6]} 68.
Kd5 {[%clk 0:00:14.6]} 68... Kb6 {[%clk 0:00:12.1]} 69. Ke6 {[%clk 0:00:15.5]}
69... Kxb5 {[%clk 0:00:12.5]} 70. a7 {[%clk 0:00:15.6]} 70... Ka6 {[%clk
0:00:13.4]} 71. a8=Q+ {[%clk 0:00:16.5]} 71... Kb6 {[%clk 0:00:13.8]} 72. Qc8
{[%clk 0:00:17]} 72... Kb5 {[%clk 0:00:13.9]} 73. Kd5 {[%clk 0:00:17.9]} 73...
Kb4 {[%clk 0:00:14.8]} 74. Qc4+ {[%clk 0:00:18]} 74... Ka3 {[%clk 0:00:15.7]}
75. Kd4 {[%clk 0:00:18.9]} 75... Kb2 {[%clk 0:00:16.5]} 76. Qc3+ {[%clk
0:00:19.2]} 76... Ka2 {[%clk 0:00:16.8]} 77. Qb4 {[%clk 0:00:19.7]} 77... Ka1
{[%clk 0:00:16.3]} 78. Ke3 {[%clk 0:00:20.2]} 78... Ka2 {[%clk 0:00:17.2]} 79.
Ke2 {[%clk 0:00:21.1]} 79... Ka1 {[%clk 0:00:18.1]} 80. Kd3 {[%clk 0:00:22]}
80... Ka2 {[%clk 0:00:19]} 81. Kd2 {[%clk 0:00:22.9]} 81... Ka1 {[%clk
0:00:19.9]} 82. Kd1 {[%clk 0:00:23.8]} 82... Ka2 {[%clk 0:00:20.8]} 83. Kc2
{[%clk 0:00:24.7]} 83... Ka1 {[%clk 0:00:21.6]} 84. Kc1 {[%clk 0:00:25.6]} 84...
Ka2 {[%clk 0:00:22]} 85. Kd2 {[%clk 0:00:26.5]} 85... Ka1 {[%clk 0:00:22.9]} 86.
Kc3 {[%clk 0:00:27.4]} 86... Ka2 {[%clk 0:00:23.8]} 87. Kc4 {[%clk 0:00:28.2]}
87... Ka1 {[%clk 0:00:24.7]} 88. Kb5 {[%clk 0:00:29]} 88... Ka2 {[%clk
0:00:25.4]} 89. Ka5 {[%clk 0:00:29.9]} 89... Ka1 {[%clk 0:00:26.3]} 90. Ka4
{[%clk 0:00:30.7]} 90... Ka2 {[%clk 0:00:27.2]} 91. Kb5 {[%clk 0:00:31.2]} 91...
Ka1 {[%clk 0:00:28.1]} 92. Kc4 {[%clk 0:00:31.6]} 92... Ka2 {[%clk 0:00:29]} 93.
Qb6 {[%clk 0:00:31.8]} 93... Ka1 {[%clk 0:00:29.9]} 94. Kc3 {[%clk 0:00:32.3]}
94... Ka2 {[%clk 0:00:30.8]} 95. Qb2# {[%clk 0:00:32.3]} 1-0

[Event "*** SCC Grand Prix: Titled Tuesday Blitz"]
[Site "Chess.com"]
[Date "2020.06.02"]
[Round "1"]
[White "FM_VS99"]
[Black "Lagmantr"]
[Result "1-0"]
[WhiteElo "2311"]
[BlackElo "2618"]
[TimeControl "180+1"]
[EndTime "10:08:48 PDT"]
[Termination "FM_VS99 won on time"]

1. c4 {[%clk 0:02:55.6]} 1... Nf6 {[%clk 0:02:58.2]} 2. g3 {[%clk 0:02:56.5]}
2... e6 {[%clk 0:02:58.6]} 3. Bg2 {[%clk 0:02:57.4]} 3... d5 {[%clk 0:02:59.4]}
4. Nf3 {[%clk 0:02:57.8]} 4... g6 {[%clk 0:02:58.5]} 5. O-O {[%clk 0:02:58.7]}
5... Bg7 {[%clk 0:02:58.8]} 6. d4 {[%clk 0:02:58.7]} 6... O-O {[%clk 0:02:59]}
7. Nc3 {[%clk 0:02:59.2]} 7... c6 {[%clk 0:02:59.1]} 8. h3 {[%clk 0:02:49.1]}
8... b6 {[%clk 0:02:58.5]} 9. e3 {[%clk 0:02:41.2]} 9... Bb7 {[%clk 0:02:56.1]}
10. b3 {[%clk 0:02:38.7]} 10... Nbd7 {[%clk 0:02:55.9]} 11. Bb2 {[%clk
0:02:38.3]} 11... c5 {[%clk 0:02:49.6]} 12. dxc5 {[%clk 0:02:37.8]} 12... Nxc5
{[%clk 0:02:48.2]} 13. Nd4 {[%clk 0:02:34]} 13... Nfe4 {[%clk 0:02:37.8]} 14.
Nxe4 {[%clk 0:02:32.8]} 14... dxe4 {[%clk 0:02:37.2]} 15. Qc2 {[%clk 0:02:26.9]}
15... f5 {[%clk 0:02:29.8]} 16. b4 {[%clk 0:02:23.1]} 16... e5 {[%clk 0:02:16]}
17. bxc5 {[%clk 0:02:15.8]} 17... exd4 {[%clk 0:02:14.3]} 18. exd4 {[%clk
0:02:06.2]} 18... Bxd4 {[%clk 0:01:57.9]} 19. Bxd4 {[%clk 0:01:58.5]} 19... Qxd4
{[%clk 0:01:58.8]} 20. cxb6 {[%clk 0:01:58.8]} 20... axb6 {[%clk 0:01:59.6]} 21.
Qb3 {[%clk 0:01:43.4]} 21... Qc5 {[%clk 0:01:57.8]} 22. Rfb1 {[%clk 0:01:20.7]}
22... Ra6 {[%clk 0:01:54.8]} 23. Qb5 {[%clk 0:01:20.4]} 23... Qxb5 {[%clk
0:01:54.4]} 24. Rxb5 {[%clk 0:01:15.9]} 24... Rc8 {[%clk 0:01:53.9]} 25. Bf1
{[%clk 0:01:15.6]} 25... Rc5 {[%clk 0:01:52.9]} 26. a4 {[%clk 0:01:06.7]} 26...
Rxb5 {[%clk 0:01:51]} 27. cxb5 {[%clk 0:01:06.3]} 27... Ra8 {[%clk 0:01:51.5]}
28. Rd1 {[%clk 0:01:00]} 28... Bc8 {[%clk 0:01:34.3]} 29. Rd6 {[%clk 0:00:56.3]}
29... Kg7 {[%clk 0:01:29.1]} 30. Rxb6 {[%clk 0:00:54.5]} 30... Rxa4 {[%clk
0:01:28.5]} 31. Rc6 {[%clk 0:00:53.6]} 31... Ra8 {[%clk 0:01:25.8]} 32. b6
{[%clk 0:00:30.8]} 32... Kh6 {[%clk 0:01:25.4]} 33. h4 {[%clk 0:00:26.1]} 33...
Bb7 {[%clk 0:01:20.4]} 34. Rc7 {[%clk 0:00:25.4]} 34... Bd5 {[%clk 0:01:20]} 35.
b7 {[%clk 0:00:24.4]} 35... Rb8 {[%clk 0:01:20]} 36. Ba6 {[%clk 0:00:24.2]}
36... g5 {[%clk 0:01:18.5]} 37. hxg5+ {[%clk 0:00:22.6]} 37... Kxg5 {[%clk
0:01:07.8]} 38. Rg7+ {[%clk 0:00:20.7]} 38... Kh6 {[%clk 0:00:53.7]} 39. Rd7
{[%clk 0:00:19.9]} 39... Bb3 {[%clk 0:00:46.3]} 40. Rc7 {[%clk 0:00:14.2]} 40...
Bd5 {[%clk 0:00:46.2]} 41. Rc8 {[%clk 0:00:11.8]} 41... Rxb7 {[%clk 0:00:46.3]}
42. Bxb7 {[%clk 0:00:12.1]} 42... Bxb7 {[%clk 0:00:47.2]} 43. Rc7 {[%clk
0:00:12.2]} 43... Bd5 {[%clk 0:00:46.9]} 44. Kh2 {[%clk 0:00:12.6]} 44... Kg6
{[%clk 0:00:46.6]} 45. Kh3 {[%clk 0:00:12.3]} 45... Be6 {[%clk 0:00:37.1]} 46.
Kh4 {[%clk 0:00:12]} 46... h6 {[%clk 0:00:33.8]} 47. Rc6 {[%clk 0:00:12]} 47...
Kf6 {[%clk 0:00:33.8]} 48. Kh5 {[%clk 0:00:12.3]} 48... Ke5 {[%clk 0:00:33.8]}
49. Kxh6 {[%clk 0:00:12.7]} 49... Bd5 {[%clk 0:00:33.3]} 50. Ra6 {[%clk
0:00:12]} 50... f4 {[%clk 0:00:32.8]} 51. g4 {[%clk 0:00:07.7]} 51... Kd4 {[%clk
0:00:17.6]} 52. g5 {[%clk 0:00:06.2]} 52... e3 {[%clk 0:00:15.3]} 53. fxe3+
{[%clk 0:00:05.6]} 53... fxe3 {[%clk 0:00:15.7]} 54. Ra1 {[%clk 0:00:05.6]}
54... Kd3 {[%clk 0:00:13.8]} 55. Rd1+ {[%clk 0:00:04.3]} 55... Ke4 {[%clk
0:00:13.6]} 56. g6 {[%clk 0:00:04]} 1-0

[Event "*** SCC Grand Prix: Titled Tuesday Blitz"]
[Site "Chess.com"]
[Date "2020.06.02"]
[Round "1"]
[White "Gerasimenyuk_Miha"]
[Black "Volodar_Murzin"]
[Result "0-1"]
[WhiteElo "2362"]
[BlackElo "2720"]
[TimeControl "180+1"]
[EndTime "10:08:49 PDT"]
[Termination "Volodar_Murzin won by checkmate"]

1. d4 {[%clk 0:03:00.9]} 1... Nf6 {[%clk 0:02:59.7]} 2. Nf3 {[%clk 0:03:00.7]}
2... g6 {[%clk 0:03:00.2]} 3. Bg5 {[%clk 0:03:00.7]} 3... Bg7 {[%clk 0:03:00.8]}
4. e3 {[%clk 0:03:00.9]} 4... O-O {[%clk 0:03:00.6]} 5. Nbd2 {[%clk 0:03:00.8]}
5... d6 {[%clk 0:03:01.2]} 6. Bd3 {[%clk 0:03:00.7]} 6... Nbd7 {[%clk
0:03:01.7]} 7. h4 {[%clk 0:02:59.9]} 7... h5 {[%clk 0:02:01.6]} 8. Bxf6 {[%clk
0:02:57.6]} 8... Nxf6 {[%clk 0:01:47.1]} 9. c3 {[%clk 0:02:56.9]} 9... Bg4
{[%clk 0:01:43.6]} 10. Qc2 {[%clk 0:02:56.5]} 10... Qe8 {[%clk 0:01:42.9]} 11.
Ng5 {[%clk 0:02:54.6]} 11... e5 {[%clk 0:01:41.7]} 12. f3 {[%clk 0:02:53.7]}
12... exd4 {[%clk 0:01:03.9]} 13. fxg4 {[%clk 0:02:52]} 13... Qxe3+ {[%clk
0:01:01.8]} 14. Kf1 {[%clk 0:02:42.4]} 14... Nxg4 {[%clk 0:01:00.3]} 15. Ndf3
{[%clk 0:02:36.8]} 15... dxc3 {[%clk 0:00:49.4]} 16. Re1 {[%clk 0:02:33.9]}
16... Rae8 {[%clk 0:00:33.4]} 17. bxc3 {[%clk 0:01:51.6]} 17... Qxe1+ {[%clk
0:00:18.7]} 18. Nxe1 {[%clk 0:01:47]} 18... Ne3+ {[%clk 0:00:19.3]} 19. Kf2
{[%clk 0:01:45.8]} 19... Nxc2 {[%clk 0:00:20.2]} 20. Nxc2 {[%clk 0:01:43.2]}
20... Bxc3 {[%clk 0:00:20.9]} 21. Rb1 {[%clk 0:01:33.3]} 21... Rb8 {[%clk
0:00:19.1]} 22. Bc4 {[%clk 0:01:31.7]} 22... Kg7 {[%clk 0:00:18.7]} 23. Rb3
{[%clk 0:01:29.6]} 23... Ba5 {[%clk 0:00:18.9]} 24. Rf3 {[%clk 0:01:26.5]} 24...
Bb6+ {[%clk 0:00:19.2]} 25. Kg3 {[%clk 0:01:24.5]} 25... Rbe8 {[%clk 0:00:12.6]}
26. Bxf7 {[%clk 0:01:20.7]} 26... Re2 {[%clk 0:00:10.2]} 27. Ne6+ {[%clk
0:01:16.1]} 27... Rxe6 {[%clk 0:00:10.6]} 28. Bxe6 {[%clk 0:01:15.7]} 28... Re8
{[%clk 0:00:11.3]} 29. Rf7+ {[%clk 0:01:11.9]} 29... Kh6 {[%clk 0:00:10.5]} 30.
Bb3 {[%clk 0:01:10.9]} 30... Re2 {[%clk 0:00:06.3]} 31. Nb4 {[%clk 0:01:03.5]}
31... Re3+ {[%clk 0:00:05.1]} 32. Kh2 {[%clk 0:01:02]} 32... Re4 {[%clk
0:00:05.3]} 33. Nd5 {[%clk 0:00:57.9]} 33... Rxh4+ {[%clk 0:00:03.5]} 34. Kg3
{[%clk 0:00:56]} 34... Rg4+ {[%clk 0:00:04]} 35. Kf3 {[%clk 0:00:55.8]} 35... c6
{[%clk 0:00:02.8]} 36. Nf6 {[%clk 0:00:52.7]} 36... Rd4 {[%clk 0:00:02.6]} 37.
Rh7+ {[%clk 0:00:44.3]} 37... Kg5 {[%clk 0:00:03.1]} 38. Ne4+ {[%clk 0:00:44.5]}
38... Kf5 {[%clk 0:00:03.7]} 39. Rf7+ {[%clk 0:00:43]} 39... Ke5 {[%clk
0:00:04.3]} 40. Re7+ {[%clk 0:00:42]} 40... Kf5 {[%clk 0:00:04.6]} 41. Bc2
{[%clk 0:00:37.2]} 41... d5 {[%clk 0:00:04.3]} 42. Nd6+ {[%clk 0:00:29.3]} 42...
Kf6 {[%clk 0:00:04.2]} 43. Rxb7 {[%clk 0:00:27.4]} 43... Rd2 {[%clk 0:00:04.4]}
44. Bb3 {[%clk 0:00:25.7]} 44... Rd3+ {[%clk 0:00:03.5]} 45. Ke2 {[%clk
0:00:24.6]} 45... Re3+ {[%clk 0:00:03.7]} 46. Kd2 {[%clk 0:00:24.9]} 46... Rg3
{[%clk 0:00:03.7]} 47. Ne8+ {[%clk 0:00:23.7]} 47... Ke5 {[%clk 0:00:02.9]} 48.
Re7+ {[%clk 0:00:21.8]} 48... Kd4 {[%clk 0:00:03.4]} 49. Re2 {[%clk 0:00:21.3]}
49... c5 {[%clk 0:00:03.7]} 50. Ba4 {[%clk 0:00:20]} 50... c4 {[%clk 0:00:02.9]}
51. Nd6 {[%clk 0:00:19.8]} 51... Ba5+ {[%clk 0:00:03.3]} 52. Kc2 {[%clk
0:00:19.5]} 52... Kc5 {[%clk 0:00:03.6]} 53. Nf7 {[%clk 0:00:17.8]} 53... Bb6
{[%clk 0:00:03.4]} 54. Bd7 {[%clk 0:00:17.4]} 54... h4 {[%clk 0:00:03.8]} 55.
Ne5 {[%clk 0:00:16.7]} 55... g5 {[%clk 0:00:04.2]} 56. Nf7 {[%clk 0:00:15.5]}
56... Kd4 {[%clk 0:00:04.3]} 57. Ne5 {[%clk 0:00:14.1]} 57... Kc5 {[%clk
0:00:04.7]} 58. Nf3 {[%clk 0:00:13.9]} 58... Ba5 {[%clk 0:00:04.5]} 59. Ne5
{[%clk 0:00:13.4]} 59... Rc3+ {[%clk 0:00:04]} 60. Kb2 {[%clk 0:00:12.7]} 60...
Rg3 {[%clk 0:00:04.1]} 61. Bh3 {[%clk 0:00:12.1]} 61... Bd8 {[%clk 0:00:03.9]}
62. Ng4 {[%clk 0:00:11.9]} 62... Bc7 {[%clk 0:00:03.8]} 63. Re6 {[%clk
0:00:11.7]} 63... Rd3 {[%clk 0:00:03]} 64. Kc2 {[%clk 0:00:11.6]} 64... Ra3
{[%clk 0:00:02.9]} 65. Kb1 {[%clk 0:00:10.7]} 65... Rd3 {[%clk 0:00:03.5]} 66.
Re7 {[%clk 0:00:10.1]} 66... Bf4 {[%clk 0:00:04.2]} 67. Rxa7 {[%clk 0:00:07.8]}
67... Rd1+ {[%clk 0:00:04.7]} 68. Kc2 {[%clk 0:00:07.5]} 68... Rc1+ {[%clk
0:00:05.4]} 69. Kb2 {[%clk 0:00:07.4]} 69... d4 {[%clk 0:00:06.1]} 70. Ra5+
{[%clk 0:00:06.1]} 70... Kb4 {[%clk 0:00:06]} 71. Rf5 {[%clk 0:00:04.2]} 71...
c3# {[%clk 0:00:05.5]} 0-1

[Event "*** SCC Grand Prix: Titled Tuesday Blitz"]
[Site "Chess.com"]
[Date "2020.06.02"]
[Round "1"]
[White "GMSrinath"]
[Black "kikydu96"]
[Result "1-0"]
[WhiteElo "2797"]
[BlackElo "2401"]
[TimeControl "180+1"]
[EndTime "10:08:50 PDT"]
[Termination "GMSrinath won on time"]

1. Nf3 {[%clk 0:02:49]} 1... f5 {[%clk 0:02:57.7]} 2. d3 {[%clk 0:02:47.3]} 2...
Nf6 {[%clk 0:02:55.1]} 3. Nc3 {[%clk 0:02:46.3]} 3... d5 {[%clk 0:02:53.5]} 4.
d4 {[%clk 0:02:45.6]} 4... e6 {[%clk 0:02:50.7]} 5. g3 {[%clk 0:02:43.1]} 5...
Be7 {[%clk 0:02:47.3]} 6. Bg2 {[%clk 0:02:43.3]} 6... O-O {[%clk 0:02:47.8]} 7.
O-O {[%clk 0:02:43.4]} 7... c5 {[%clk 0:02:44.7]} 8. e3 {[%clk 0:02:43.2]} 8...
Nc6 {[%clk 0:02:43.8]} 9. Ne2 {[%clk 0:02:43.8]} 9... b6 {[%clk 0:02:37.7]} 10.
b3 {[%clk 0:02:43.4]} 10... Ba6 {[%clk 0:02:34.1]} 11. Bb2 {[%clk 0:02:43.7]}
11... Ne4 {[%clk 0:02:25.7]} 12. Rc1 {[%clk 0:02:16.2]} 12... Rc8 {[%clk
0:02:24.6]} 13. c4 {[%clk 0:02:16.4]} 13... dxc4 {[%clk 0:02:13.3]} 14. bxc4
{[%clk 0:02:17.3]} 14... Na5 {[%clk 0:02:12.4]} 15. Qa4 {[%clk 0:02:00]} 15...
Qe8 {[%clk 0:02:09.5]} 16. Qxe8 {[%clk 0:01:43.7]} 16... Rfxe8 {[%clk
0:02:10.4]} 17. Ne5 {[%clk 0:01:41.6]} 17... Nd2 {[%clk 0:02:04]} 18. Rfd1
{[%clk 0:01:39]} 18... Ndxc4 {[%clk 0:02:03.4]} 19. Nxc4 {[%clk 0:01:24.4]}
19... Nxc4 {[%clk 0:02:03.3]} 20. Rc2 {[%clk 0:01:25]} 20... Nxb2 {[%clk
0:01:48.7]} 21. Rxb2 {[%clk 0:01:25.9]} 21... Bf6 {[%clk 0:01:47.2]} 22. Rc2
{[%clk 0:01:23.7]} 22... cxd4 {[%clk 0:01:35.1]} 23. Rxc8 {[%clk 0:01:24.6]}
23... Rxc8 {[%clk 0:01:34.6]} 24. Nxd4 {[%clk 0:01:25.5]} 24... Bxd4 {[%clk
0:01:31.4]} 25. exd4 {[%clk 0:01:26.4]} 25... Rd8 {[%clk 0:01:29.1]} 26. d5
{[%clk 0:01:25]} 26... Bb7 {[%clk 0:01:28.2]} 27. d6 {[%clk 0:01:18.1]} 27...
Bxg2 {[%clk 0:01:28]} 28. Kxg2 {[%clk 0:01:19]} 28... Kf7 {[%clk 0:01:11.4]} 29.
f4 {[%clk 0:01:18.6]} 29... Ke8 {[%clk 0:01:11.5]} 30. Rd3 {[%clk 0:01:14.1]}
30... Kd7 {[%clk 0:01:06.5]} 31. Ra3 {[%clk 0:00:57.7]} 31... a5 {[%clk
0:01:06.4]} 32. Rb3 {[%clk 0:00:57.4]} 32... Kc6 {[%clk 0:01:06.3]} 33. Rc3+
{[%clk 0:00:54.1]} 33... Kxd6 {[%clk 0:01:05.9]} 34. a4 {[%clk 0:00:55]} 34...
Rd7 {[%clk 0:01:01.5]} 35. Kf3 {[%clk 0:00:55]} 35... Rc7 {[%clk 0:01:00.9]} 36.
Rd3+ {[%clk 0:00:53.2]} 36... Ke7 {[%clk 0:01:00.7]} 37. Rb3 {[%clk 0:00:53.6]}
37... Rc4 {[%clk 0:00:57.4]} 38. Rxb6 {[%clk 0:00:53.8]} 38... Rxa4 {[%clk
0:00:57.5]} 39. Ke3 {[%clk 0:00:46.4]} 39... Kf6 {[%clk 0:00:51.7]} 40. Ra6
{[%clk 0:00:44.3]} 40... h6 {[%clk 0:00:51.7]} 41. h4 {[%clk 0:00:43.5]} 41...
Ra3+ {[%clk 0:00:44.4]} 42. Kf2 {[%clk 0:00:43.5]} 42... g6 {[%clk 0:00:39.5]}
43. Ra8 {[%clk 0:00:41.7]} 43... a4 {[%clk 0:00:29.2]} 44. Rf8+ {[%clk
0:00:41.8]} 44... Kg7 {[%clk 0:00:27.9]} 45. Re8 {[%clk 0:00:41.8]} 45... Kf7
{[%clk 0:00:28.2]} 46. Rh8 {[%clk 0:00:42]} 46... h5 {[%clk 0:00:28.7]} 47. Rh7+
{[%clk 0:00:40.3]} 47... Kf6 {[%clk 0:00:26.5]} 48. Ra7 {[%clk 0:00:41.2]} 48...
Ra1 {[%clk 0:00:25]} 49. Kg2 {[%clk 0:00:40.8]} 49... a3 {[%clk 0:00:25.1]} 50.
Kh2 {[%clk 0:00:41.2]} 50... Ra2+ {[%clk 0:00:15.6]} 51. Kh3 {[%clk 0:00:40.2]}
51... Ra1 {[%clk 0:00:13.6]} 52. Kh2 {[%clk 0:00:40.1]} 52... a2 {[%clk
0:00:11.8]} 53. Kg2 {[%clk 0:00:40.2]} 53... e5 {[%clk 0:00:11.8]} 54. Ra6+
{[%clk 0:00:40.1]} 54... Kf7 {[%clk 0:00:11]} 55. fxe5 {[%clk 0:00:41]} 55...
Ke7 {[%clk 0:00:10.4]} 56. Kh2 {[%clk 0:00:38.4]} 56... Kf7 {[%clk 0:00:09.4]}
57. Kg2 {[%clk 0:00:38.2]} 57... Ke8 {[%clk 0:00:09]} 58. Kh2 {[%clk 0:00:36]}
58... Kd7 {[%clk 0:00:09.2]} 59. Kg2 {[%clk 0:00:36.2]} 59... Kc7 {[%clk
0:00:09.5]} 60. e6 {[%clk 0:00:36.6]} 60... Kd8 {[%clk 0:00:09.6]} 61. Ra7
{[%clk 0:00:35.1]} 61... Ke8 {[%clk 0:00:08.9]} 62. e7 {[%clk 0:00:34.9]} 62...
Re1 {[%clk 0:00:05.6]} 63. Rxa2 {[%clk 0:00:31.9]} 63... Rxe7 {[%clk 0:00:06.1]}
64. Kf3 {[%clk 0:00:31.7]} 64... Kf7 {[%clk 0:00:06.3]} 65. Ra4 {[%clk
0:00:30.6]} 65... Kf6 {[%clk 0:00:06.2]} 66. Kf4 {[%clk 0:00:30.5]} 66... Re6
{[%clk 0:00:05.6]} 67. Rb4 {[%clk 0:00:30.7]} 67... Ra6 {[%clk 0:00:05.8]} 68.
Rc4 {[%clk 0:00:30.4]} 68... Ke6 {[%clk 0:00:04.8]} 69. Kg5 {[%clk 0:00:23.1]}
69... Kd5 {[%clk 0:00:04.8]} 70. Rb4 {[%clk 0:00:22.7]} 70... Ke5 {[%clk
0:00:02.6]} 71. Rb8 {[%clk 0:00:19.7]} 71... Ke4 {[%clk 0:00:02.5]} 72. Rb3
{[%clk 0:00:16.4]} 72... Rd6 {[%clk 0:00:02.3]} 73. Ra3 {[%clk 0:00:16]} 1-0